bitfinex-derivatives/quotes_BTCF0:USTF0_20250411
["timestamp","ask_amount","ask_price","bid_price","bid_amount"]
[1744332336649,0.0630213,79393.0,79389.0,0.00018896]
[1744332336855,0.1260461,79390.0,79389.0,0.12623236]
[1744332337052,0.1260461,79390.0,79389.0,0.00018896]
[1744332337559,0.4868461,79390.0,79389.0,0.00018896]
[1744332337855,0.4868461,79390.0,79389.0,0.12623656]
[1744332338059,0.3608,79390.0,79389.0,0.12623656]
[1744332338246,0.0630157,79400.0,79399.0,0.1260318]
[1744332338957,0.1677285,79402.0,79401.0,0.1260286]
[1744332339954,0.1890682,79393.0,79392.0,0.1890638]
[1744332340151,0.5498682,79393.0,79392.0,0.1890638]
[1744332341459,0.4238221,79393.0,79392.0,0.1890638]
[1744332341653,0.4238221,79393.0,79392.0,0.2279638]
[1744332342252,0.3608,79393.0,79389.0,0.00018896]
[1744332342451,0.1260461,79390.0,79389.0,0.18925486]
[1744332342657,0.1260461,79390.0,79389.0,0.06321196]
[1744332342860,0.1260461,79390.0,79389.0,0.00018896]
[1744332343155,0.1260746,79372.0,79371.0,0.13550354]
[1744332343351,0.4868746,79372.0,79371.0,0.1260738]
[1744332343656,0.1260604,79382.0,79381.0,0.1260604]
[1744332343863,0.4621252,79388.0,79387.0,0.1260508]
[1744332344065,0.5251492,79388.0,79387.0,0.1260508]
[1744332345155,0.1260588,79382.0,79381.0,0.1890851]
[1744332345352,0.1260588,79382.0,79381.0,0.2298851]
[1744332345968,0.1260588,79382.0,79378.0,0.0630322]
[1744332345969,0.1260604,79381.0,79373.0,0.0630362]
[1744332346162,0.1260604,79381.0,79371.0,0.05026095]
[1744332346163,0.5264604,79381.0,79371.0,0.05026095]
[1744332346366,0.5264604,79381.0,79380.0,0.12625086]
[1744332346568,0.1656604,79381.0,79380.0,0.12625086]
[1744332347266,0.1656604,79381.0,79380.0,0.20655086]
[1744332347464,0.5264604,79381.0,79380.0,0.20655086]
[1744332348063,0.0396,79381.0,79380.0,0.20655086]
[1744332348262,0.1260563,79384.0,79383.0,0.1260572]
[1744332348564,0.1668563,79384.0,79383.0,0.1260572]
[1744332348870,0.1668563,79384.0,79380.0,0.12624776]
[1744332348871,0.1260604,79381.0,79380.0,0.12624776]
[1744332349063,0.4868604,79381.0,79380.0,0.12624776]
[1744332349263,0.1011292,79383.0,79382.0,0.1260588]
[1744332349460,0.1419292,79383.0,79382.0,0.1260588]
[1744332349767,0.1260604,79381.0,79380.0,0.00018896]
[1744332349967,0.4868604,79381.0,79380.0,0.00018896]
[1744332351063,0.1260874,79364.0,79363.0,0.12659211]
[1744332351368,0.1260874,79364.0,79363.0,0.00050401]
[1744332351963,0.2092874,79364.0,79363.0,0.00050401]
[1744332353667,0.0832,79364.0,79363.0,0.12659291]
[1744332354570,0.0832,79364.0,79363.0,0.16759291]
[1744332354764,0.2092874,79364.0,79363.0,0.16759291]
[1744332356569,0.3608,79368.0,79363.0,0.04150401]
[1744332356777,0.486881,79368.0,79367.0,0.1260826]
[1744332361780,0.3608,79368.0,79367.0,0.1260826]
[1744332362376,0.3608,79368.0,79367.0,1.6260826]
[1744332362579,0.3608,79368.0,79367.0,1.8760826]
[1744332362778,0.0630186,79396.0,79374.0,0.0630355]
[1744332362981,0.62246672,79399.0,79386.0,0.1260524]
[1744332363479,0.126043,79392.0,79386.0,0.1260524]
[1744332363783,0.62246672,79399.0,79386.0,0.1260524]
[1744332363980,0.00018896,79394.0,79386.0,0.2069524]
[1744332364181,0.00018896,79394.0,79393.0,0.1260413]
[1744332364380,0.0004,79410.0,79404.0,0.1260238]
[1744332364381,0.26166672,79405.0,79404.0,0.1260238]
[1744332364686,0.38768902,79405.0,79404.0,0.1260238]
[1744332365084,0.26166672,79405.0,79404.0,0.1260238]
[1744332365280,0.26166672,79405.0,79404.0,0.2140238]
[1744332365580,0.0004,79410.0,79409.0,0.1260159]
[1744332365778,0.00018896,79412.0,79411.0,0.1260127]
[1744332365975,0.0629916,79430.0,79421.0,0.1259969]
[1744332366178,0.0004,79434.0,79428.0,0.1259858]
[1744332366482,0.062976,79451.0,79440.0,0.0629828]
[1744332366684,0.1259581,79449.0,79448.0,0.1259509]
[1744332366890,0.0629861,79437.0,79433.0,0.10304]
[1744332367183,0.0629918,79431.0,79430.0,0.1259823]
[1744332367378,0.0629918,79431.0,79430.0,0.14249428]
[1744332367579,0.0629918,79431.0,79430.0,0.01651198]
[1744332367786,0.0629918,79431.0,79430.0,0.14249458]
[1744332367978,0.0629918,79431.0,79430.0,0.01651198]
[1744332368382,0.1259858,79428.0,79427.0,0.00018884]
[1744332368881,0.0629878,79435.0,79427.0,0.00018884]
[1744332368882,0.1078804,79444.0,79430.0,0.0629907]
[1744332369078,0.12616054,79438.0,79437.0,0.1259715]
[1744332369278,0.1259731,79436.0,79435.0,0.0629868]
[1744332369986,0.4867731,79436.0,79435.0,0.0629868]
[1744332370187,0.1259731,79436.0,79435.0,0.0629868]
[1744332370387,0.4867731,79436.0,79435.0,0.0629868]
[1744332370790,0.1259731,79436.0,79435.0,0.0629868]
[1744332371090,0.12616124,79438.0,79437.0,0.1259715]
[1744332371481,0.00018884,79438.0,79437.0,0.1259715]
[1744332371783,0.00018884,79438.0,79437.0,0.2094715]
[1744332372090,0.00018884,79438.0,79437.0,0.22593726]
[1744332372682,0.00018884,79438.0,79437.0,0.2094715]
[1744332372883,0.0004,79458.0,79457.0,0.1259398]
[1744332373281,0.0004,79458.0,79451.0,0.0411]
[1744332373491,0.1259503,79451.0,79447.0,0.3608]
[1744332373684,0.125954,79448.0,79447.0,0.3608]
[1744332373991,0.106576,79450.0,79448.0,0.125954]
[1744332373992,0.4237768,79449.0,79448.0,0.125954]
[1744332374291,0.0436,79450.0,79449.0,0.1259525]
[1744332374789,0.00018884,79455.0,79454.0,0.1259445]
[1744332375990,0.00018884,79455.0,79454.0,0.23008413]
[1744332376390,0.3608,79470.0,79454.0,0.56793963]
[1744332376588,0.3608,79470.0,79469.0,0.1259208]
[1744332376785,0.3608,79487.0,79475.0,0.0629551]
[1744332376987,0.045,79486.0,79481.0,0.1259017]
[1744332377194,0.1263002,79482.0,79481.0,0.1259017]
[1744332377394,0.1259124,79476.0,79475.0,0.125911]
[1744332377699,0.4867124,79476.0,79475.0,0.125911]
[1744332378094,0.5733124,79476.0,79475.0,0.125911]
[1744332378289,0.4474,79476.0,79475.0,0.125911]
[1744332378692,0.5733097,79476.0,79475.0,0.125911]
[1744332379690,0.4474,79476.0,79475.0,0.125911]
[1744332379890,0.0004,79482.0,79481.0,0.1259017]
[1744332380090,0.1263002,79482.0,79481.0,0.1259017]
[1744332380396,0.1680002,79482.0,79481.0,0.1259017]
[1744332380592,0.1680002,79482.0,79468.0,0.36098872]
[1744332380593,0.0421,79482.0,79468.0,0.36098872]
[1744332380798,0.1259208,79469.0,79468.0,0.00018872]
[1744332381008,0.1259183,79471.0,79470.0,0.1259176]
[1744332381295,0.1259208,79469.0,79468.0,0.00018872]
[1744332381496,0.1259208,79469.0,79468.0,0.12611032]
[1744332381890,0.0411,79471.0,79470.0,0.1259192]
[1744332382993,0.1670176,79471.0,79470.0,0.1259192]
[1744332383997,0.1259208,79469.0,79468.0,0.00018872]
[1744332384498,0.1259208,79469.0,79468.0,0.12611102]
[1744332385597,0.1259208,79469.0,79468.0,0.00018872]
[1744332385801,0.1259525,79449.0,79448.0,0.2288322]
[1744332386294,0.3608,79451.0,79450.0,0.1259509]
[1744332386295,0.1678524,79451.0,79450.0,0.1259509]
[1744332386496,0.1259345,79461.0,79459.0,0.1259366]
[1744332386698,0.0629654,79463.0,79447.0,0.3608]
[1744332386699,0.0419,79458.0,79457.0,0.1259398]
[1744332386997,0.0629512,79481.0,79480.0,0.1259033]
[1744332387389,0.0629547,79477.0,79476.0,0.1259087]
[1744332387597,0.188866,79477.0,79476.0,0.1259087]
[1744332387799,0.188866,79477.0,79473.0,0.00018872]
[1744332387800,0.1259128,79474.0,79473.0,0.00018872]
[1744332388390,0.0419,79474.0,79473.0,0.00018872]
[1744332388589,0.0419,79474.0,79473.0,0.12610312]
[1744332389004,0.1678128,79474.0,79473.0,0.12610312]
[1744332389199,0.1678128,79474.0,79473.0,0.00018872]
[1744332389499,0.5286128,79474.0,79473.0,0.12610312]
[1744332390699,0.5286128,79474.0,79473.0,0.00018872]
[1744332390904,0.7786128,79474.0,79473.0,0.00018872]
[1744332391095,0.7786128,79474.0,79456.0,0.0416]
[1744332391299,0.1889077,79461.0,79460.0,0.1888987]
[1744332391611,0.0629652,79463.0,79462.0,0.1888939]
[1744332391895,0.0629652,79463.0,79462.0,0.2055115]
[1744332392101,0.3608,79465.0,79464.0,0.1259287]
[1744332392401,0.1259271,79465.0,79464.0,0.14373841]
[1744332392901,0.1259271,79465.0,79464.0,0.16035601]
[1744332393202,0.1259221,79469.0,79468.0,0.1259208]
[1744332393387,0.00018872,79470.0,79469.0,0.1259208]
[1744332393596,0.00018872,79470.0,79469.0,0.14373051]
[1744332393793,0.00018872,79470.0,79469.0,0.22883051]
[1744332393998,0.0629455,79488.0,79481.0,0.1259017]
[1744332394194,0.3608,79489.0,79481.0,0.16032901]
[1744332394495,0.1258932,79487.0,79481.0,0.16032901]
[1744332394701,0.3608,79489.0,79481.0,0.16956714]
[1744332394901,0.3608,79489.0,79488.0,0.1258907]
[1744332395097,0.3608,79489.0,79488.0,0.14370041]
[1744332395298,0.3608,79489.0,79488.0,0.16031801]
[1744332395499,0.4866891,79489.0,79488.0,0.16031801]
[1744332395992,0.4866891,79489.0,79488.0,0.03442731]
[1744332396302,0.5304891,79489.0,79488.0,0.03442731]
[1744332397500,0.5304891,79489.0,79488.0,0.0166176]
[1744332398697,0.5304891,79489.0,79488.0,0.1425083]
[1744332399001,0.5304891,79489.0,79488.0,0.0166176]
[1744332399393,0.5304891,79489.0,79488.0,0.1425083]
[1744332399602,0.5304891,79489.0,79488.0,0.10877023]
[1744332399803,0.1258938,79487.0,79486.0,0.1258929]
[1744332400006,0.0629483,79485.0,79481.0,0.00018872]
[1744332400203,0.4867002,79482.0,79481.0,0.12608962]
[1744332400399,0.4867002,79482.0,79481.0,0.01787293]
[1744332400911,0.4867002,79482.0,79481.0,0.0177477]
[1744332401204,0.1259223,79468.0,79467.0,0.1673239]
[1744332401395,0.4867223,79468.0,79467.0,0.14349174]
[1744332401707,0.1259223,79468.0,79467.0,0.15314883]
[1744332402504,0.1259271,79465.0,79464.0,0.0629641]
[1744332402711,0.1259303,79463.0,79462.0,0.167331]
[1744332402915,0.1259303,79463.0,79460.0,0.00018872]
[1744332402916,0.1259334,79461.0,79460.0,0.00018872]
[1744332403205,0.3608,79461.0,79460.0,0.00018872]
[1744332403518,0.1259237,79468.0,79467.0,0.1888844]
[1744332403709,0.00018872,79475.0,79471.0,0.0629586]
[1744332403901,0.00018872,79475.0,79474.0,0.1259128]
[1744332404910,0.12610002,79475.0,79474.0,0.1259128]
[1744332405212,0.16790002,79475.0,79474.0,0.1259128]
[1744332407811,0.16790002,79475.0,79472.0,0.0442]
[1744332407812,0.1259144,79473.0,79472.0,0.0442]
[1744332408909,0.1259144,79473.0,79472.0,0.170116]
[1744332409112,0.1259271,79465.0,79464.0,0.044]
[1744332409317,0.1259334,79461.0,79460.0,0.04188872]
[1744332409512,0.4867334,79461.0,79460.0,0.16782372]
[1744332409807,0.4867334,79461.0,79460.0,0.00018872]
[1744332410007,0.1259493,79451.0,79450.0,0.22603577]
[1744332410206,0.4867493,79451.0,79450.0,0.22603577]
[1744332410605,0.4867493,79451.0,79450.0,7e-08]
[1744332410910,0.1259604,79444.0,79443.0,0.00937116]
[1744332411108,0.3608,79444.0,79429.0,0.0417]
[1744332411308,0.4867651,79441.0,79436.0,0.00018872]
[1744332411609,0.4867651,79441.0,79436.0,0.04188872]
[1744332411809,0.4867651,79441.0,79437.0,0.0629854]
[1744332412008,0.4867651,79441.0,79436.0,0.04188872]
[1744332412215,0.4867651,79441.0,79436.0,0.00018872]
[1744332412713,0.1259715,79437.0,79436.0,0.00018872]
[1744332413511,0.1694715,79437.0,79436.0,0.00018872]
[1744332413710,0.0435,79437.0,79436.0,0.12616182]
[1744332413905,0.1259712,79438.0,79437.0,0.1889534]
[1744332414102,0.1259712,79438.0,79437.0,0.2752534]
[1744332414719,0.1259715,79437.0,79436.0,2e-08]
[1744332414903,0.2116715,79437.0,79436.0,2e-08]
[1744332418123,0.1684715,79437.0,79436.0,2e-08]
[1744332421825,0.1259984,79420.0,79419.0,0.13537176]
[1744332422027,0.1259984,79420.0,79419.0,0.126]
[1744332423021,0.4867905,79425.0,79424.0,0.1259921]
[1744332423324,0.00018885,79427.0,79426.0,0.1259889]
[1744332423512,0.36098885,79427.0,79426.0,0.1259889]
[1744332423712,0.00018885,79427.0,79426.0,0.1259889]
[1744332423919,0.00018885,79427.0,79426.0,0.2127889]
[1744332425025,0.12617615,79427.0,79426.0,0.2127889]
[1744332426224,0.00018885,79427.0,79426.0,0.2127889]
[1744332426430,0.1889315,79448.0,79447.0,0.125954]
[1744332426727,0.1889315,79448.0,79429.0,0.062992]
[1744332426728,0.149418,79452.0,79451.0,0.1259493]
[1744332427123,0.0629752,79451.0,79448.0,0.0629764]
[1744332427331,0.4237752,79451.0,79450.0,0.0466]
[1744332427531,0.1508752,79451.0,79450.0,0.1725509]
[1744332427727,0.0629752,79451.0,79450.0,0.1725509]
[1744332428117,0.1067752,79451.0,79450.0,0.1725509]
[1744332428327,0.1521752,79451.0,79450.0,0.1725509]
[1744332428531,0.3608,79451.0,79450.0,0.1725509]
[1744332428730,0.149418,79452.0,79451.0,0.1259493]
[1744332428932,0.149418,79452.0,79451.0,0.2198493]
[1744332430320,0.149418,79452.0,79451.0,0.4698493]
[1744332431032,0.00018885,79457.0,79456.0,0.1259414]
[1744332431233,0.00018885,79457.0,79456.0,0.14295983]
[1744332431438,0.14945235,79467.0,79456.0,0.26701843]
[1744332431623,0.14945235,79467.0,79466.0,0.1259255]
[1744332431828,0.27537625,79467.0,79466.0,0.1259255]
[1744332432437,0.27537625,79467.0,79466.0,0.2156255]
[1744332432736,0.27537625,79467.0,79466.0,0.2252097]
[1744332433136,0.14945235,79467.0,79466.0,0.2252097]
[1744332433550,0.27537625,79467.0,79466.0,0.2252097]
[1744332433833,0.27537625,79467.0,79466.0,0.0897]
[1744332434027,0.27537625,79467.0,79466.0,0.1711255]
[1744332434439,0.27537625,79467.0,79459.0,0.18909185]
[1744332434440,0.0629636,79465.0,79459.0,0.18909185]
[1744332434738,0.125935,79460.0,79459.0,0.18909185]
[1744332435339,0.0932,79464.0,79461.0,0.0629661]
[1744332435539,0.1729192,79470.0,79469.0,0.1259208]
[1744332435733,0.5337192,79470.0,79469.0,0.1259208]
[1744332435925,0.125935,79461.0,79460.0,0.1259336]
[1744332436331,0.125935,79460.0,79459.0,0.00018885]
[1744332436537,0.1259556,79447.0,79446.0,0.0465]
[1744332436839,0.1259556,79447.0,79446.0,0.1259572]
[1744332437243,0.0923,79448.0,79437.0,0.0465]
[1744332437536,0.1259699,79438.0,79437.0,0.1724695]
[1744332437736,0.3608,79442.0,79441.0,0.1259651]
[1744332437938,0.2623572,79446.0,79445.0,0.1259588]
[1744332438338,0.1259651,79441.0,79440.0,0.1688654]
[1744332438535,0.1259651,79441.0,79440.0,0.1259654]
[1744332439341,0.1259641,79442.0,79441.0,0.1259651]
[1744332439837,0.4867641,79442.0,79441.0,0.1259651]
[1744332440028,0.1259731,79436.0,79435.0,0.0006924]
[1744332441031,0.2165731,79436.0,79435.0,0.0006924]
[1744332441334,0.1016,79454.0,79440.0,0.18895]
[1744332441539,0.1259667,79441.0,79440.0,0.0629833]
[1744332442237,0.1259699,79439.0,79438.0,0.1259692]
[1744332442440,0.1259699,79439.0,79438.0,0.0438]
[1744332442636,0.2144699,79439.0,79438.0,0.0438]
[1744332442834,0.1259715,79437.0,79436.0,0.1259718]
[1744332443236,0.10688,79446.0,79445.0,0.1259588]
[1744332443637,0.3608,79448.0,79446.0,0.0629784]
[1744332443840,0.1259556,79448.0,79447.0,0.2344296]
[1744332444139,0.00018885,79450.0,79449.0,0.1259525]
[1744332444534,0.00018885,79450.0,79449.0,0.3759525]
[1744332444838,0.00018885,79450.0,79449.0,0.75409573]
[1744332445939,0.18784751,79457.0,79456.0,0.1259414]
[1744332446237,0.18784751,79457.0,79456.0,0.50408463]
[1744332446438,0.18784751,79457.0,79456.0,0.75408463]
[1744332446638,0.18784751,79457.0,79456.0,0.50408463]
[1744332446943,0.18784751,79457.0,79456.0,0.55078463]
[1744332447242,0.22269201,79463.0,79462.0,0.1259319]
[1744332447435,0.22269201,79463.0,79462.0,0.14327513]
[1744332447640,0.22269201,79463.0,79462.0,0.1259319]
[1744332448038,0.1259303,79463.0,79462.0,0.1259319]
[1744332448560,0.2177303,79463.0,79462.0,0.0467]
[1744332448748,0.1259382,79458.0,79457.0,0.0467]
[1744332449039,0.1259382,79458.0,79456.0,0.3608]
[1744332449040,0.1259398,79457.0,79456.0,0.3608]
[1744332449238,0.2177398,79457.0,79456.0,0.3608]
[1744332449434,0.1259414,79456.0,79455.0,0.00018885]
[1744332449835,0.2159414,79456.0,79455.0,0.00018885]
[1744332452240,0.09,79456.0,79455.0,0.12613175]
[1744332452540,0.2159414,79456.0,79455.0,0.12613175]
[1744332452741,0.09,79456.0,79455.0,0.12613175]
[1744332454046,0.2159414,79456.0,79455.0,0.12613175]
[1744332454244,0.09,79456.0,79455.0,0.12613175]
[1744332454440,0.1721319,79462.0,79461.0,0.1259334]
[1744332455241,0.1259366,79460.0,79459.0,0.1259359]
[1744332455434,0.4867366,79460.0,79459.0,0.1259359]
[1744332455638,0.1259414,79456.0,79455.0,0.00018885]
[1744332456642,0.4867414,79456.0,79455.0,0.00018885]
[1744332457944,0.0921,79459.0,79455.0,0.00018885]
[1744332458143,0.2180388,79459.0,79458.0,0.1259382]
[1744332458451,0.0462,79462.0,79461.0,0.1259334]
[1744332458853,0.0923,79462.0,79461.0,0.1259334]
[1744332459249,0.0923,79462.0,79461.0,0.1732334]
[1744332459649,0.5790319,79462.0,79461.0,0.1732334]
[1744332459855,0.062969,79459.0,79455.0,0.00018885]
[1744332460052,0.1259414,79456.0,79455.0,0.00018885]
[1744332460645,0.2166414,79456.0,79455.0,0.00018885]
[1744332461756,0.3407,79456.0,79434.0,0.00930446]
[1744332461952,0.1259731,79436.0,79435.0,0.12647815]
[1744332462852,0.0451,79437.0,79436.0,0.1259731]
[1744332463052,0.0451,79437.0,79436.0,0.2161731]
[1744332463761,0.1710715,79437.0,79436.0,0.2161731]
[1744332467057,0.00018885,79443.0,79436.0,0.0902]
[1744332467249,0.12615085,79443.0,79442.0,0.1259636]
[1744332467451,0.12615085,79443.0,79442.0,0.1724636]
[1744332468151,0.12615085,79443.0,79442.0,0.1259636]
[1744332468353,0.17455085,79443.0,79442.0,0.1259636]
[1744332468856,0.17455085,79443.0,79442.0,0.1724636]
[1744332469058,0.53535085,79443.0,79442.0,0.1724636]
[1744332469255,0.1259731,79436.0,79410.0,0.17446862]
[1744332469454,0.4867731,79436.0,79426.0,0.0465]
[1744332469654,0.1259842,79429.0,79414.0,0.0487]
[1744332469862,0.4867842,79429.0,79422.0,0.1889921]
[1744332470055,0.4867842,79429.0,79422.0,0.0629974]
[1744332470257,0.4867842,79429.0,79424.0,0.1259919]
[1744332470454,0.5829842,79429.0,79424.0,0.0629959]
[1744332470654,0.5829842,79429.0,79428.0,0.12617465]
[1744332470951,0.5829842,79429.0,79428.0,0.00018885]
[1744332471151,0.0962,79429.0,79428.0,0.12617465]
[1744332471552,0.3608,79447.0,79428.0,0.12617465]
[1744332471553,0.3608,79442.0,79435.0,0.0629873]
[1744332471757,0.0442,79442.0,79439.0,0.0629835]
[1744332471955,0.092,79442.0,79441.0,0.1259651]
[1744332472355,0.22269201,79447.0,79442.0,0.1259636]
[1744332472557,0.0478,79446.0,79442.0,0.1259636]
[1744332473063,0.1259613,79444.0,79442.0,0.1259636]
[1744332473264,0.1107787,79446.0,79442.0,0.1259636]
[1744332473265,0.12615085,79443.0,79442.0,0.1259636]
[1744332473758,0.00018885,79443.0,79442.0,0.1259636]
[1744332474353,0.12615085,79443.0,79442.0,0.1259636]
[1744332474956,0.12615085,79443.0,79435.0,0.0629873]
[1744332474957,0.0629848,79439.0,79436.0,0.1259729]
[1744332475158,0.1259715,79437.0,79436.0,0.1889593]
[1744332475766,0.0629832,79441.0,79440.0,0.1259667]
[1744332475967,0.00018885,79443.0,79442.0,0.1259636]
[1744332476166,0.12615085,79443.0,79442.0,0.1259636]
[1744332477367,0.1259667,79440.0,79439.0,0.0629841]
[1744332478267,0.1259699,79438.0,79437.0,0.0629856]
[1744332478668,0.125981,79431.0,79430.0,0.4867782]
[1744332479172,0.0629889,79433.0,79432.0,0.1259794]
[1744332479669,0.062988,79435.0,79434.0,0.0629874]
[1744332479869,0.062988,79435.0,79434.0,0.1099874]
[1744332480070,0.125981,79431.0,79430.0,0.3608]
[1744332480365,0.125981,79431.0,79410.0,0.47560996]
[1744332480366,0.4237905,79431.0,79414.0,0.0630037]
[1744332480568,0.1260032,79417.0,79416.0,0.1740045]
[1744332481266,0.1260111,79412.0,79411.0,0.00050371]
[1744332481471,0.4868111,79412.0,79411.0,0.00050371]
[1744332481857,0.1260223,79405.0,79404.0,0.00018885]
[1744332482062,0.126027,79402.0,79401.0,0.37623193]
[1744332482674,0.1260413,79393.0,79392.0,0.44944481]
[1744332482868,0.4868413,79393.0,79392.0,0.44944481]
[1744332483670,0.5790413,79393.0,79392.0,0.44944481]
[1744332483971,0.5790413,79393.0,79392.0,0.57548771]
[1744332484474,0.2182413,79393.0,79392.0,0.57548771]
[1744332484857,0.2182413,79393.0,79392.0,0.44944481]
[1744332485172,0.1260492,79389.0,79388.0,0.1260485]
[1744332485565,0.2162492,79389.0,79388.0,0.1260485]
[1744332485768,0.1260492,79388.0,79387.0,0.00050386]
[1744332486168,0.3608,79394.0,79393.0,0.1260413]
[1744332486363,0.4868397,79394.0,79393.0,0.1260413]
[1744332486568,0.3608,79394.0,79393.0,0.1260413]
[1744332486870,0.00018885,79400.0,79399.0,0.1260318]
[1744332489265,0.00018885,79400.0,79393.0,0.3608]
[1744332489266,0.1890586,79396.0,79393.0,0.3608]
[1744332489462,0.0476,79395.0,79394.0,0.1260397]
[1744332489674,0.0476,79395.0,79394.0,0.0630186]
[1744332489675,0.2186397,79395.0,79394.0,0.0630186]
[1744332490970,0.2186397,79395.0,79394.0,0.1099186]
[1744332491168,0.2186397,79395.0,79394.0,0.1546186]
[1744332491368,0.00018885,79400.0,79399.0,0.1260318]
[1744332491766,0.11206663,79420.0,79399.0,0.8379118]
[1744332491974,0.11206663,79420.0,79419.0,0.126]
[1744332492677,0.0630072,79411.0,79410.0,0.1260062]
[1744332492972,0.0630072,79411.0,79408.0,0.1640882]
[1744332492973,0.189007,79418.0,79417.0,0.1260016]
[1744332493178,0.06318975,79418.0,79417.0,0.1260016]
[1744332493877,0.1260048,79416.0,79415.0,0.0630025]
[1744332494174,0.06318975,79418.0,79408.0,0.2270972]
[1744332494175,0.1260159,79409.0,79408.0,0.2270972]
[1744332494371,0.1260159,79409.0,79408.0,0.1260172]
[1744332494569,0.0446,79410.0,79409.0,0.1260159]
[1744332494764,0.0630041,79414.0,79411.0,0.0630057]
[1744332494972,0.2336152,79414.0,79413.0,0.1260096]
[1744332495572,0.0630062,79412.0,79390.0,0.3608]
[1744332495766,0.1260238,79404.0,79396.0,0.1100179]
[1744332495962,0.1260238,79404.0,79400.0,0.1260291]
[1744332496167,0.1260238,79404.0,79400.0,0.0630149]
[1744332496370,0.0931,79405.0,79402.0,0.0630128]
[1744332496678,0.0457,79415.0,79414.0,0.126008]
[1744332496867,0.0630046,79414.0,79411.0,0.0630062]
[1744332497066,0.1260096,79413.0,79412.0,0.1740096]
[1744332497368,0.0967,79417.0,79412.0,0.1110049]
[1744332497575,0.12619045,79418.0,79417.0,0.1260032]
[1744332498271,0.1260096,79413.0,79412.0,0.048]
[1744332498474,0.1260096,79413.0,79412.0,0.1740111]
[1744332498774,0.1260096,79413.0,79412.0,0.048]
[1744332499075,0.1260159,79409.0,79408.0,0.126016]
[1744332500274,0.1260207,79406.0,79403.0,0.00018885]
[1744332500466,0.1260223,79405.0,79404.0,0.1712238]
[1744332500672,0.2149223,79405.0,79404.0,0.0452]
[1744332500975,0.1260238,79404.0,79403.0,0.00018885]
[1744332501476,0.2179238,79404.0,79403.0,0.00018885]
[1744332505781,0.2179238,79404.0,79403.0,5e-08]
[1744332506377,0.4679238,79404.0,79403.0,5e-08]
[1744332506579,0.5689638,79404.0,79403.0,5e-08]
[1744332509078,0.63024461,79404.0,79403.0,5e-08]
[1744332509278,0.63024461,79404.0,79386.0,0.0484]
[1744332509279,0.1260492,79388.0,79386.0,0.0484]
[1744332509480,0.4868492,79388.0,79387.0,0.04590386]
[1744332510278,0.5877492,79388.0,79387.0,0.00050386]
[1744332510479,0.2269492,79388.0,79387.0,0.12655466]
[1744332510679,0.5877492,79388.0,79387.0,0.17425466]
[1744332510887,0.0630224,79391.0,79388.0,0.0630239]
[1744332511081,0.1260461,79390.0,79389.0,0.0974]
[1744332511277,0.1762461,79390.0,79389.0,0.0497]
[1744332511584,0.2269461,79390.0,79389.0,0.0497]
[1744332515486,0.1762461,79390.0,79389.0,0.0497]
[1744332515888,0.2236461,79390.0,79389.0,0.0497]
[1744332516289,0.1260492,79388.0,79387.0,0.00050386]
[1744332516785,0.4868492,79388.0,79387.0,0.00050386]
[1744332517877,0.1260492,79388.0,79387.0,0.00050386]
[1744332518074,0.1890702,79390.0,79389.0,0.1260476]
[1744332518774,0.1890702,79390.0,79389.0,0.2252476]
[1744332518975,0.5498702,79390.0,79389.0,0.2252476]
[1744332519378,0.1890702,79390.0,79389.0,0.0992]
[1744332519885,0.1260746,79372.0,79365.0,0.0630426]
[1744332520089,0.1260794,79369.0,79368.0,0.0503]
[1744332520287,0.0630375,79372.0,79356.0,0.049]
[1744332520288,0.1260874,79364.0,79362.0,0.0094038]
[1744332520484,0.4868874,79364.0,79363.0,0.05080401]
[1744332520790,0.4868874,79364.0,79363.0,0.00050401]
[1744332521583,0.5363874,79364.0,79363.0,0.00050401]
[1744332522491,0.4868874,79364.0,79363.0,0.00050401]
[1744332522691,0.1260874,79364.0,79363.0,0.00050401]
[1744332522991,0.5374874,79364.0,79363.0,0.00050401]
[1744332524487,0.1766874,79364.0,79363.0,0.00050401]
[1744332524689,0.1766874,79364.0,79363.0,0.12659291]
[1744332524690,0.1260874,79364.0,79363.0,0.12659291]
[1744332524987,0.1260842,79366.0,79365.0,0.1260858]
[1744332525294,0.1260858,79365.0,79364.0,0.1004]
[1744332525482,0.1260858,79365.0,79364.0,0.2264874]
[1744332527592,0.4868858,79365.0,79364.0,0.2264874]
[1744332530196,0.1260858,79365.0,79364.0,0.0503]
[1744332530389,0.2252858,79365.0,79364.0,0.0503]
[1744332531182,0.1260874,79364.0,79363.0,0.00050401]
[1744332531588,0.2258874,79364.0,79363.0,0.00050401]
[1744332533294,0.1260874,79364.0,79363.0,0.00050401]
[1744332533495,0.4868874,79364.0,79363.0,0.00050401]
[1744332533895,0.4868874,79364.0,79363.0,0.09420401]
[1744332534595,1.0192,79364.0,79339.0,0.00050416]
[1744332534898,0.1261239,79342.0,79341.0,0.063061]
[1744332535101,0.1261239,79342.0,79341.0,0.160161]
[1744332535301,0.1261255,79340.0,79339.0,0.12663126]
[1744332535598,0.1891841,79344.0,79343.0,0.1261207]
[1744332536302,0.1261255,79340.0,79339.0,0.00050416]
[1744332543803,0.47299388,79344.0,79340.0,0.063062]
[1744332543804,0.11219388,79344.0,79340.0,0.063062]
[1744332544004,0.11219388,79344.0,79343.0,0.1261207]
[1744332544308,0.23831298,79344.0,79343.0,0.1261207]
[1744332545201,0.1261191,79344.0,79343.0,0.1261207]
[1744332547010,0.11219388,79346.0,79345.0,0.1261175]
[1744332547710,0.11219388,79346.0,79345.0,0.1741175]
[1744332549412,0.1261131,79348.0,79347.0,0.1261144]
[1744332550906,0.1261131,79348.0,79345.0,0.048]
[1744332550907,0.126116,79346.0,79345.0,0.048]
[1744332551108,0.126116,79346.0,79345.0,0.1741175]
[1744332551309,0.126116,79346.0,79345.0,0.048]
[1744332551514,0.227016,79346.0,79345.0,0.048]
[1744332551917,0.227016,79346.0,79345.0,0.1741175]
[1744332552121,0.06324518,79349.0,79348.0,0.1261128]
[1744332552717,0.00018898,79349.0,79348.0,0.1261128]
[1744332555716,0.12630018,79349.0,79348.0,0.1261128]
[1744332555911,0.00018898,79349.0,79348.0,0.1261128]
[1744332556313,0.189173,79348.0,79347.0,0.1261134]
[1744332556519,0.063057,79348.0,79347.0,0.1745134]
[1744332556719,0.165457,79348.0,79347.0,0.1745134]
[1744332556925,0.00018898,79349.0,79348.0,0.1261128]
[1744332557119,0.00018898,79349.0,79348.0,0.1760128]
[1744332557326,0.12630018,79349.0,79348.0,0.1760128]
[1744332560420,0.00018898,79349.0,79348.0,0.1760128]
[1744332562423,0.12630018,79349.0,79348.0,0.0499]
[1744332562720,0.17660018,79349.0,79348.0,0.1760128]
[1744332566220,0.17660018,79349.0,79348.0,0.0499]
[1744332566418,0.17660018,79349.0,79346.0,0.1261149]
[1744332566419,0.1261191,79344.0,79335.0,0.22579034]
[1744332566624,0.1261175,79345.0,79344.0,0.052]